bitfinex-derivatives/quotes_SOLF0:USTF0_20250609
["timestamp","ask_amount","ask_price","bid_price","bid_amount"]
[1749451907040,8.20083151,150.8,150.79,0.05018803]
[1749451907240,12.62260567,150.8,150.79,0.05018803]
[1749451907539,9.86061517,150.8,150.79,0.05018803]
[1749451907739,16.48871517,150.8,150.79,0.05018803]
[1749451908239,16.4884539,150.8,150.79,0.05018803]
[1749451908735,16.48845384,150.8,150.79,0.05018803]
[1749451908933,16.48845654,150.8,150.79,0.05018803]
[1749451910133,16.48782476,150.8,150.79,0.05018803]
[1749451910333,14.82893151,150.8,150.79,0.05018803]
[1749451910533,19.25138377,150.8,150.79,0.05018803]
[1749451911634,19.25119113,150.8,150.79,0.05018803]
[1749451911838,14.82893151,150.8,150.79,0.05018803]
[1749451912038,19.25119113,150.8,150.79,0.05018803]
[1749451912438,14.82893151,150.8,150.79,0.05018803]
[1749451912939,19.25118842,150.8,150.79,0.05018803]
[1749451913737,19.25119113,150.8,150.79,0.05018803]
[1749451913930,14.82893151,150.8,150.79,0.05018803]
[1749451914130,19.25119113,150.8,150.79,0.05018803]
[1749451914542,19.25131627,150.8,150.79,0.05018803]
[1749451914941,14.82893151,150.8,150.79,0.05018803]
[1749451915335,21.02606818,150.8,150.79,0.05018803]
[1749451915541,25.44846187,150.8,150.79,0.05018803]
[1749451916243,25.44817038,150.8,150.79,0.05018803]
[1749451916643,25.44759811,150.8,150.79,0.05018803]
[1749451916942,25.44759541,150.8,150.79,0.05018803]
[1749451917635,21.02606818,150.8,150.79,0.05018803]
[1749451918035,18.81936106,150.8,150.79,0.05018803]
[1749451918245,12.62222439,150.8,150.79,0.05018803]
[1749451918446,18.81936106,150.8,150.79,0.05018803]
[1749451918637,25.44746106,150.8,150.79,0.05018803]
[1749451918946,25.44288545,150.8,150.79,0.05018803]
[1749451919944,25.44280046,150.8,150.79,0.05018803]
[1749451920739,21.02606818,150.8,150.79,0.05018803]
[1749451921043,25.44280046,150.8,150.79,0.05018803]
[1749451921345,21.02606818,150.8,150.79,0.05018803]
[1749451921549,25.44281138,150.8,150.79,0.05018803]
[1749451922247,21.02606818,150.8,150.79,0.05018803]
[1749451922750,22.68125776,150.8,150.79,0.05018803]
[1749451923948,18.26407768,150.8,150.79,0.05018803]
[1749451924342,22.69056072,150.8,150.79,0.05018803]
[1749451924541,18.26407768,150.8,150.79,0.05018803]
[1749451924942,16.06245111,150.8,150.79,0.05018803]
[1749451925147,16.06245111,150.8,150.79,6.67868803]
[1749451925148,9.86531444,150.8,150.79,6.67868803]
[1749451925545,9.86638578,150.8,150.79,9.44067853]
[1749451925845,5.43884101,150.8,150.79,9.44067853]
[1749451926045,9.86638846,150.8,150.79,9.44067853]
[1749451926245,5.43884101,150.8,150.79,9.44067853]
[1749451926447,9.86638735,150.8,150.79,6.67868803]
[1749451927449,9.86136882,150.8,150.79,6.67868803]
[1749451928156,5.43884101,150.8,150.79,6.67868803]
[1749451928350,9.86136994,150.8,150.79,6.67868803]
[1749451928550,9.86136994,150.8,150.79,9.44067853]
[1749451928850,5.43884101,150.8,150.79,9.44067853]
[1749451929050,9.86162141,150.8,150.79,9.44067853]
[1749451929352,5.43884101,150.8,150.79,9.44067853]
[1749451929551,9.86263729,150.8,150.79,9.44067853]
[1749451930043,5.43884101,150.8,150.79,9.44067853]
[1749451933757,0.04925199,150.82,150.81,6.6276]
[1749451933957,5.49031874,150.82,150.81,42.0095905]
[1749451937155,9.92965487,150.82,150.81,42.0095905]
[1749451937558,9.93429303,150.82,150.81,32.62]
[1749451937759,9.9342826,150.82,150.81,32.62]
[1749451938160,5.49031874,150.82,150.81,32.62]
[1749451938458,9.93426825,150.82,150.81,32.62]
[1749451939260,9.93944966,150.82,150.81,32.62]
[1749451939461,9.9391594,150.82,150.81,32.62]
[1749451940352,12.7011499,150.82,150.79,2.81217853]
[1749451940554,9.88990741,150.81,150.79,2.81217853]
[1749451940752,5.44106675,150.8,150.79,6.67838803]
[1749451941051,0.04925199,150.82,150.79,2.81217853]
[1749451941252,0.04925199,150.82,150.81,9.3895905]
[1749451941454,5.4909704,150.82,150.81,9.3895905]
[1749451941655,9.93980037,150.82,150.81,9.3895905]
[1749451941856,5.4909704,150.82,150.81,9.3895905]
[1749451943264,0.04925199,150.82,150.81,9.3895905]
[1749451943964,5.199e-05,150.82,150.81,9.3895905]
[1749451945160,2.73711092,150.85,150.84,6.6263]
[1749451945366,8.17453926,150.85,150.84,41.9682905]
[1749451945865,6.19713667,150.91,150.84,35.3419905]
[1749451946070,6.19713667,150.93,150.9,2.7619905]
[1749451946363,4.44390345,150.92,150.9,2.80415778]
[1749451946553,4.44390619,150.91,150.9,2.80415778]
[1749451946758,17.90102717,150.94,150.9,2.80415778]
[1749451946954,4.44389673,150.93,150.9,9.42775778]
[1749451947155,4.44389673,150.92,150.9,9.42775778]
[1749451947355,8.51683667,150.94,150.9,0.04216728]
[1749451947864,4.44401333,150.93,150.9,0.04216728]
[1749451948063,8.51683667,150.94,150.9,0.04216728]
[1749451948264,4.44401226,150.93,150.91,6.6229]
[1749451948465,6.6216,150.95,150.91,6.6229]
[1749451948667,4.4622373,150.94,150.91,6.6229]
[1749451948862,4.4622373,150.93,150.91,6.6229]
[1749451949062,12.81873667,150.95,150.91,6.6229]
[1749451949265,4.4463409,150.94,150.91,6.6229]
[1749451949767,6.6216,150.95,150.91,6.6229]
[1749451949966,4.45994367,150.94,150.91,6.6229]
[1749451950265,6.6216,150.95,150.91,6.6229]
[1749451950457,11.08194168,150.94,150.91,6.6229]
[1749451950659,6.622,150.94,150.91,6.6229]
[1749451950857,6.622,150.94,150.9,6.66576728]
[1749451951456,6.622,150.94,150.91,6.6232]
[1749451951658,6.622,150.94,150.9,0.04216728]
[1749451951854,6.6217,150.95,150.9,0.04216728]
[1749451952061,6.6217,150.95,150.91,6.6232]
[1749451952765,6.6219,150.94,150.91,6.6232]
[1749451953068,4.30915141,150.96,150.91,6.6232]
[1749451953362,4.47531946,150.95,150.9,0.04216728]
[1749451953763,4.30915141,150.96,150.9,0.04216728]
[1749451954273,6.6223,150.94,150.91,6.623]
[1749451955961,6.6223,150.94,150.9,6.66556728]
[1749451956470,6.6223,150.94,150.91,6.6232]
[1749451959171,12.0345382,150.95,150.92,6.6228]
[1749451959570,6.6216,150.95,150.92,6.6228]
[1749451960372,6.622,150.94,150.91,6.6231]
[1749451967073,4.6013,150.97,150.91,4.30915141]
[1749451967273,8.29392964,151.01,150.93,19.9]
[1749451967573,6.6169,151.06,151.01,6.6185]
[1749451967774,6.6169,151.06,151.0,4.30219133]
[1749451967775,6.75165733,151.05,151.02,0.05080989]
[1749451967974,4.49348361,151.04,151.02,0.05080989]
[1749451968175,11.11128361,151.04,151.02,0.05080989]
[1749451968377,6.6178,151.04,151.02,0.05080989]
[1749451968877,6.618,151.03,151.02,0.05080989]
[1749451970074,6.6187,151.02,151.0,32.58]
[1749451970373,4.30219133,151.04,150.96,6.6207]
[1749451970675,6.6194,151.0,150.97,32.56]
[1749451970875,4.30219133,151.04,150.97,32.56]
[1749451971078,0.0475173,151.02,150.99,0.05099628]
[1749451971572,4.53489377,151.02,150.99,0.05099628]
[1749451971766,6.6198,150.99,150.97,32.56]
[1749451972372,6.6194,151.0,150.97,32.56]
[1749451972773,6.6194,151.0,150.97,32.60360424]
[1749451975275,6.6194,151.0,150.97,39.22400424]
[1749451976473,6.6194,151.0,150.97,32.60360424]
[1749451978076,6.6194,151.0,150.97,39.22420424]
[1749451978275,6.6198,150.99,150.97,32.60360424]
[1749451979178,6.6195,151.0,150.97,39.22420424]
[1749451980082,6.6195,151.0,150.98,6.6202]
[1749451980581,6.6195,151.0,150.97,39.22400424]
[1749451983885,0.0475173,151.02,150.97,39.22400424]
[1749451984590,6.6196,151.0,150.97,39.22400424]
[1749451985792,6.6196,151.0,150.98,4.30219133]
[1749451986292,6.6191,151.01,150.98,10.92229133]
[1749451986482,0.0475173,151.02,150.98,10.92229133]
[1749451986688,6.6189,151.01,150.98,10.92229133]
[1749451986884,0.0475173,151.02,150.98,4.30219133]
[1749451987493,4.56270619,151.02,150.98,4.30219133]
[1749451987694,0.0475173,151.02,150.98,4.30219133]
[1749451987993,6.6197,150.99,150.98,4.30219133]
[1749451988186,0.0475173,151.02,150.97,32.60360424]
[1749451988493,6.62,150.99,150.97,32.60360424]
[1749451988893,0.0475173,151.02,150.97,32.60360424]
[1749451989094,6.6202,150.98,150.97,0.04360424]
[1749451990795,6.6214,150.96,150.92,419.04219133]
[1749451990995,6.6214,150.96,150.94,4.30219133]
[1749451991493,6.6207,150.97,150.94,4.30219133]
[1749451991695,6.66814586,150.97,150.94,4.34575616]
[1749451991888,6.66814586,150.97,150.94,10.96735616]
[1749451992996,6.6211,150.96,150.94,10.96735616]
[1749451993296,6.6211,150.96,150.94,6.66516483]
[1749451993497,6.6215,150.95,150.94,0.04356483]
[1749451995301,6.6212,150.96,150.94,0.04356483]
[1749451996590,6.6215,150.95,150.94,0.04356483]
[1749451997887,6.6212,150.96,150.94,0.04356483]
[1749451999199,6.6215,150.95,150.94,0.04356483]
[1749452003003,6.6212,150.96,150.94,0.04356483]
[1749452003200,0.04744586,150.97,150.94,0.04356483]
[1749452003698,0.04744586,150.97,150.95,6.6214]
[1749452004492,0.04744586,150.97,150.94,6.66536483]
[1749452004894,6.66804586,150.97,150.94,6.66536483]
[1749452005305,6.66804586,150.97,150.95,6.6214]
[1749452005801,6.66804586,150.97,150.94,6.66536483]
[1749452008703,11.93427073,150.96,150.94,0.04356483]
[1749452008903,6.6212,150.96,150.94,0.04356483]
[1749452010506,6.6212,150.96,150.94,6.66546483]
[1749452012911,11.94321127,150.95,150.94,0.04356483]
[1749452013114,16.46719864,150.95,150.94,0.04356483]
[1749452013312,16.46820801,150.95,150.94,0.04356483]
[1749452013713,16.4681905,150.95,150.94,0.04356483]
[1749452013914,11.94321127,150.95,150.94,0.04356483]
[1749452014217,9.84668901,150.95,150.94,0.04356483]
[1749452014610,5.32171127,150.95,150.94,0.04356483]
[1749452014913,0.04744586,150.97,150.94,0.04356483]
[1749452015117,9.84599157,150.96,150.94,0.04356483]
[1749452015410,6.66834586,150.97,150.94,6.66526483]
[1749452015609,9.84533892,150.96,150.94,6.66526483]
[1749452015810,0.04744586,150.97,150.94,6.66526483]
[1749452016005,9.84533892,150.96,150.94,6.66526483]
[1749452016215,0.04744586,150.97,150.94,6.66526483]
[1749452016403,9.84530299,150.96,150.94,6.66526483]
[1749452016608,5.32223823,150.95,150.94,6.66526483]
[1749452017411,6.6211,150.96,150.94,6.66526483]
[1749452018116,5.31837349,150.95,150.94,6.66526483]
[1749452018312,5.31837349,150.95,150.94,0.04356483]
[1749452018911,6.6211,150.96,150.94,0.04356483]
[1749452019117,5.32191371,150.95,150.94,0.04356483]
[1749452019615,5.32192455,150.95,150.94,0.04356483]
[1749452019910,11.94342455,150.95,150.94,0.04356483]
[1749452022409,11.9444725,150.95,150.94,0.04356483]
[1749452023814,5.3229725,150.95,150.94,0.04356483]
[1749452028412,9.83944866,150.95,150.94,0.04356483]
[1749452028618,5.3229725,150.95,150.94,0.04356483]
[1749452028806,9.85315593,150.95,150.94,0.04356483]
[1749452029811,5.3229725,150.95,150.94,0.04356483]
[1749452030012,9.85315593,150.95,150.94,0.04356483]
[1749452030415,5.3229725,150.95,150.94,0.04356483]
[1749452030609,9.85201845,150.95,150.94,0.04356483]
[1749452030816,5.3229725,150.95,150.94,0.04356483]
[1749452031013,9.85203635,150.95,150.94,0.04356483]
[1749452031419,11.9444725,150.95,150.94,0.04356483]
[1749452031613,5.3229725,150.95,150.94,0.04356483]
[1749452031811,9.85203635,150.95,150.94,0.04356483]
[1749452032518,5.3229725,150.95,150.94,0.04356483]
[1749452032820,16.47240249,150.95,150.94,0.04356483]
[1749452033222,14.70122421,150.95,150.94,0.04356483]
[1749452033422,19.22915514,150.95,150.94,0.04356483]
[1749452033720,14.70122421,150.95,150.94,0.04356483]
[1749452034224,19.22915514,150.95,150.94,0.04356483]
[1749452034425,14.70122421,150.95,150.94,0.04356483]
[1749452034726,19.22889782,150.95,150.94,0.04356483]
[1749452034929,14.70122421,150.95,150.94,0.04356483]
[1749452035126,19.22797168,150.95,150.94,0.04356483]
[1749452035327,8.07972421,150.95,150.94,0.04356483]
[1749452035826,12.6064571,150.95,150.94,0.04356483]
[1749452036026,12.60646619,150.95,150.94,0.04356483]
[1749452036228,8.07972421,150.95,150.94,0.04356483]
[1749452036526,12.6064694,150.95,150.94,0.04356483]
[1749452036826,12.60634304,150.95,150.94,0.04356483]
[1749452037227,8.07972421,150.95,150.94,0.04356483]
[1749452037729,12.60176712,150.95,150.94,0.04356483]
[1749452038027,19.22326482,150.95,150.94,0.04356483]
[1749452038227,14.70122421,150.95,150.94,0.04356483]
[1749452038423,19.22326482,150.95,150.94,0.04356483]
[1749452038727,14.70122421,150.95,150.94,0.04356483]
[1749452038922,19.22212756,150.95,150.94,0.04356483]
[1749452039127,19.22212986,150.95,150.94,0.04356483]
[1749452039924,8.07972421,150.95,150.94,0.04356483]
[1749452040521,12.60075622,150.95,150.94,0.04356483]
[1749452040725,8.07972421,150.95,150.92,33.02]
[1749452040925,6.1881111,150.96,150.85,394.6717]
[1749452040926,2.75675171,150.93,150.88,32.8]
[1749452041126,2.75675171,150.89,150.88,32.8]
[1749452041424,2.75675171,150.89,150.85,381.42]
[1749452041425,8.08803999,150.89,150.85,414.22]
[1749452041623,2.75675171,150.87,150.85,32.8]
[1749452041824,2.75675171,150.87,150.86,6.6254]
[1749452042022,12.61060684,150.87,150.86,6.6254]
[1749452042424,8.08935209,150.87,150.86,6.6254]
[1749452042632,12.61049829,150.87,150.86,6.6254]
[1749452043031,12.60592666,150.87,150.86,6.6254]
[1749452043227,5.33260038,150.87,150.85,39.4258]
[1749452043534,4.51656987,150.86,150.85,32.8]
[1749452043935,16.46321747,150.86,150.85,32.8]
[1749452044329,9.83781747,150.86,150.85,32.8]
[1749452044631,9.83595338,150.86,150.84,0.04702728]
[1749452044832,4.51470855,150.85,150.84,0.04702728]
[1749452045635,10.93697303,150.87,150.84,6.67312728]
[1749452045835,9.82745666,150.86,150.84,6.67312728]
[1749452046134,10.93697303,150.87,150.84,0.04702728]
[1749452046437,4.51483491,150.86,150.84,0.04702728]
[1749452046632,10.93697303,150.87,150.84,6.67302728]
[1749452046838,4.51483491,150.86,150.84,6.67302728]
[1749452047137,10.93697303,150.87,150.84,6.67302728]
[1749452047340,2.15152863,150.88,150.85,6.6259]
[1749452047341,4.51483491,150.86,150.85,6.6259]
[1749452047530,2.15152863,150.88,150.84,0.04702728]
[1749452047727,4.51481529,150.87,150.85,6.6258]
[1749452048042,4.48280996,150.86,150.85,6.6258]
[1749452048431,4.47459434,150.86,150.85,6.6258]
[1749452048735,4.4745944,150.86,150.84,6.67322728]
[1749452048936,6.46330166,150.88,150.84,6.67322728]
[1749452049131,4.4746047,150.87,150.84,6.67322728]
[1749452049330,4.4746047,150.86,150.84,6.67322728]
[1749452049535,6.6253,150.87,150.84,6.67322728]
[1749452049738,4.47463053,150.86,150.84,6.67322728]
[1749452049934,4.47463156,150.85,150.84,6.67322728]
[1749452050128,8.77612863,150.88,150.85,6.6255]
[1749452050328,4.47309314,150.87,150.84,0.04702728]
[1749452050537,2.15152863,150.88,150.84,0.04702728]
[1749452050840,4.47306233,150.87,150.84,0.04702728]
[1749452051137,2.15152863,150.88,150.86,6.6254]
[1749452051439,4.47305982,150.87,150.86,6.6254]
[1749452051940,4.47305976,150.87,150.86,6.6254]
[1749452052437,4.47331247,150.87,150.86,6.6254]
[1749452052740,2.15152863,150.88,150.86,6.6254]
[1749452052940,4.47538881,150.87,150.86,6.6254]
[1749452053439,2.15152863,150.88,150.86,6.6254]
[1749452053634,4.47538978,150.87,150.86,6.6254]
[1749452053835,2.15152863,150.88,150.86,6.6254]
[1749452054231,4.46818177,150.87,150.86,6.6254]
[1749452055134,4.46818177,150.87,150.85,6.6257]
[1749452055339,4.46818177,150.86,150.85,6.6257]
[1749452056135,2.15152863,150.88,150.86,6.6254]
[1749452056634,4.46818176,150.87,150.84,0.04702728]
[1749452056835,4.46818175,150.86,150.85,6.6255]
[1749452057032,2.15152863,150.88,150.85,6.6255]
[1749452057441,4.46818072,150.87,150.85,6.6255]
[1749452057740,4.46818072,150.86,150.85,6.6255]
[1749452058139,4.46792894,150.86,150.85,6.6255]
[1749452058343,4.47250686,150.86,150.85,6.6255]
[1749452059144,2.15152863,150.88,150.86,6.6254]
[1749452059346,4.47250686,150.87,150.86,6.6254]
[1749452059739,2.15152863,150.88,150.86,6.6254]
[1749452060243,4.47173662,150.87,150.86,6.6254]
[1749452060446,2.15152863,150.88,150.86,6.6254]
[1749452060644,4.47085189,150.87,150.86,6.6254]
[1749452060845,0.04312863,150.88,150.87,6.625]
[1749452062945,6.6224,150.93,150.9,6.6236]
[1749452063447,6.623,150.92,150.89,6.624]
[1749452063647,4.46732484,150.91,150.89,6.624]
[1749452063841,4.46731488,150.9,150.89,6.624]
[1749452064652,6.66506108,150.92,150.89,6.624]
[1749452064850,4.46730594,150.91,150.89,6.624]
[1749452065148,6.66506108,150.92,150.89,6.624]
[1749452065551,4.46716856,150.91,150.89,6.624]
[1749452065849,4.46716546,150.9,150.89,6.624]
[1749452066050,4.46716649,150.9,150.89,6.624]
[1749452066249,4.46718168,150.9,150.89,6.624]
[1749452066452,4.46718144,150.9,150.89,6.624]
[1749452066653,0.04206108,150.92,150.89,6.624]
[1749452066945,4.46718952,150.91,150.89,6.624]
[1749452067152,0.04206108,150.92,150.89,6.624]
[1749452067543,4.46718952,150.91,150.89,6.624]
[1749452067743,4.46718952,150.9,150.89,6.624]
[1749452067955,6.66496108,150.92,150.89,6.624]
[1749452068350,4.47091007,150.91,150.88,39.4897057]
[1749452068549,4.49381228,150.9,150.88,39.4897057]
[1749452068848,6.66506108,150.92,150.88,39.4897057]
[1749452069053,4.49380991,150.91,150.88,39.4897057]
[1749452069250,0.04206108,150.92,150.88,32.8656057]
[1749452069450,4.49671939,150.91,150.88,32.8656057]
[1749452069655,6.66516108,150.92,150.89,6.6241]
[1749452070251,11.12002176,150.91,150.88,39.4898057]
[1749452070549,4.49672176,150.9,150.88,39.4898057]
[1749452070756,4.49672176,150.89,150.88,39.4902057]
[1749452070956,4.49670283,150.89,150.88,39.4902057]
[1749452071457,4.49670283,150.89,150.88,42.24807096]
[1749452071657,9.42292634,150.92,150.88,42.24807096]
[1749452071856,9.42292634,150.92,150.89,2.75786526]
[1749452072159,4.49670283,150.91,150.89,9.38196526]
[1749452072355,4.49670283,150.9,150.89,9.38196526]
[1749452072553,4.4921234,150.9,150.89,9.38196526]
[1749452072751,9.42292634,150.92,150.89,9.38196526]
[1749452073057,4.49149091,150.91,150.89,9.38196526]
[1749452073357,4.49149091,150.9,150.89,9.38196526]
[1749452074058,9.42292634,150.92,150.89,9.38196526]
[1749452074559,4.49149091,150.91,150.89,9.38196526]
[1749452074756,4.49149091,150.9,150.89,9.38196526]
[1749452074954,4.4921234,150.9,150.89,9.38196526]
[1749452075156,9.42292634,150.92,150.89,9.38196526]
[1749452075657,4.4921234,150.91,150.89,9.38196526]
[1749452075858,4.4921234,150.9,150.89,9.38196526]
[1749452076660,9.42292634,150.92,150.89,9.38196526]
[1749452077051,4.4921234,150.91,150.89,9.38196526]
[1749452077256,9.42292634,150.92,150.89,9.38196526]
[1749452077653,4.492122,150.91,150.89,9.38196526]
[1749452077856,4.492122,150.9,150.89,9.38196526]
[1749452078054,9.42292634,150.92,150.89,9.38196526]
[1749452078253,4.49212101,150.91,150.89,9.38196526]
[1749452078552,4.4928824,150.9,150.89,9.38196526]
[1749452079561,4.49288243,150.9,150.89,9.38196526]
[1749452080160,4.49313543,150.9,150.89,9.38196526]
[1749452081264,4.49313304,150.9,150.89,9.38196526]
[1749452081458,9.42292634,150.92,150.89,9.38196526]
[1749452081961,4.49313543,150.91,150.89,9.38196526]
[1749452082161,9.42292634,150.92,150.89,9.38196526]
[1749452082863,4.49313543,150.91,150.89,9.38196526]
[1749452083065,4.49313543,150.9,150.89,9.38196526]
[1749452083362,9.42292634,150.92,150.89,9.38196526]
[1749452083764,4.49313543,150.91,150.89,9.38196526]
[1749452084067,4.49326193,150.9,150.89,9.38196526]
[1749452084461,9.42292634,150.92,150.89,9.38196526]
[1749452084668,9.79491139,150.91,150.89,9.38196526]
[1749452084869,4.49326193,150.9,150.89,9.38196526]
[1749452085068,5.30122721,150.91,150.89,9.38196526]
[1749452085268,2.79992634,150.92,150.9,6.6236]
[1749452085470,5.30128492,150.91,150.9,6.6236]
[1749452085970,9.79454685,150.91,150.9,6.6236]
[1749452086671,5.30128492,150.91,150.9,6.6236]
[1749452086874,9.79454685,150.91,150.9,6.6236]
[1749452087769,5.30128492,150.91,150.9,6.6236]
[1749452087973,9.79454685,150.91,150.9,6.6236]
[1749452088267,9.79454587,150.91,150.9,6.6236]
[1749452088572,5.30128492,150.91,150.9,6.6236]
[1749452088765,4.49350438,150.91,150.9,6.6236]
[1749452088966,0.04206108,150.92,150.9,6.6236]
[1749452089370,4.49349341,150.91,150.9,6.6236]
[1749452090074,4.49336691,150.91,150.9,6.6236]
[1749452090372,4.49337029,150.91,150.9,6.6236]
[1749452091070,4.49336931,150.91,150.9,6.6236]
[1749452091572,4.48957431,150.91,150.9,6.6236]
[1749452091768,0.04206108,150.92,150.9,6.6236]
[1749452092069,4.48957431,150.91,150.9,6.6236]
[1749452092267,5.30589803,150.91,150.9,6.6236]
[1749452092469,9.79547234,150.91,150.9,6.6236]
[1749452092669,5.30589803,150.91,150.9,6.6236]
[1749452092865,9.79547234,150.91,150.9,6.6236]
[1749452093668,5.30589803,150.91,150.9,6.6236]
[1749452093974,9.80086997,150.91,150.9,6.6236]
[1749452094174,5.30589803,150.91,150.9,6.6236]
[1749452094374,9.80087234,150.91,150.9,6.6236]
[1749452095576,9.80013233,150.91,150.9,6.6236]
[1749452095873,9.80013234,150.91,150.9,6.6236]
[1749452096073,9.80012286,150.91,150.9,6.6236]
[1749452096269,9.80011102,150.91,150.9,6.6236]
[1749452097173,5.30589803,150.91,150.9,6.6236]
[1749452097474,9.7998695,150.91,150.9,6.6236]
[1749452097774,9.79987897,150.91,150.9,6.6236]
[1749452099174,9.80379042,150.91,150.9,6.6236]
[1749452099374,5.30589803,150.91,150.9,6.6236]
[1749452099870,4.4978924,150.91,150.9,9.38146526]
[1749452100072,0.04206108,150.92,150.91,6.6232]
[1749452100272,9.84631918,150.92,150.91,9.38106526]
[1749452100872,4.5333119,150.92,150.91,9.38106526]
[1749452101169,0.04206108,150.92,150.91,9.38106526]
[1749452105182,5.35642467,150.92,150.9,2.75786526]
[1749452105472,5.31638376,150.91,150.89,35.33786526]
[1749452105677,0.04206108,150.92,150.89,35.33786526]
[1749452105979,5.3163848,150.91,150.89,35.33786526]
[1749452106180,6.66516108,150.92,150.89,41.96176526]
[1749452106379,5.32496501,150.91,150.89,41.96176526]
[1749452106679,5.32496501,150.9,150.89,41.96176526]
[1749452111684,5.32496501,150.9,150.89,32.58]
[1749452112083,9.8158789,150.9,150.89,32.58]
[1749452112882,9.8158789,150.9,150.88,0.0456057]
[1749452112883,12.57374416,150.9,150.88,0.0456057]
[1749452113083,8.08283027,150.89,150.88,0.0456057]
[1749452113283,12.56899908,150.89,150.88,0.0456057]
[1749452113487,14.70693027,150.89,150.88,0.0456057]
[1749452113888,19.19311518,150.89,150.88,0.0456057]
[1749452114484,6.625,150.87,150.85,32.58]
[1749452114687,5.32496501,150.86,150.85,32.58]
[1749452115189,2.75786526,150.87,150.85,39.2059]
[1749452118190,9.42865104,150.88,150.85,41.96376526]
[1749452121797,2.80385104,150.88,150.86,6.6254]
[1749452121997,0.04598578,150.88,150.86,6.6254]
[1749452128200,0.04598578,150.88,150.86,9.38326526]
[1749452129898,6.67068578,150.88,150.85,39.2056]
[1749452130203,6.67068578,150.88,150.85,41.96346526]
[1749452131405,6.67068578,150.88,150.86,6.6254]
[1749452133208,9.42855104,150.88,150.86,6.6254]
[1749452136611,6.67068578,150.88,150.86,6.6254]
[1749452137815,0.04598578,150.88,150.86,9.38326526]
[1749452138115,0.04598578,150.88,150.87,9.38286526]
[1749452143820,0.04598578,150.88,150.86,9.38316526]
[1749452144120,6.67068578,150.88,150.86,6.6253]
[1749452144320,0.04598578,150.88,150.86,6.6253]
[1749452144621,0.04598578,150.88,150.87,9.38286526]
[1749452149821,0.04598578,150.88,150.87,2.75786526]
[1749452150418,0.04598578,150.88,150.86,2.75786526]
[1749452150617,0.04598578,150.88,150.85,35.33786526]
[1749452151723,6.67088578,150.88,150.86,2.75786526]
[1749452151921,0.04598578,150.88,150.86,2.75786526]
[1749452152227,0.04598578,150.88,150.86,9.38336526]
[1749452159531,0.04598578,150.88,150.87,6.625]
[1749452159931,0.04598578,150.88,150.87,9.38286526]
[1749452172941,0.04598578,150.88,150.87,41.94286526]
[1749452173641,0.04598578,150.88,150.87,32.56]
[1749452174042,0.04598578,150.88,150.84,0.0503056]
[1749452174043,5.35999782,150.88,150.85,2.75786526]
[1749452174247,6.67058578,150.88,150.85,9.38346526]
[1749452174546,0.04598578,150.88,150.86,2.75786526]
[1749452174845,0.04598578,150.88,150.84,32.6103056]
[1749452175245,0.04598578,150.88,150.86,2.75786526]
[1749452175446,0.04598578,150.88,150.86,9.38326526]
[1749452176539,6.67058578,150.88,150.86,2.75786526]
[1749452176737,9.42845104,150.88,150.85,2.75786526]
[1749452177546,0.04598578,150.88,150.86,2.75786526]
[1749452177746,0.04598578,150.88,150.84,32.6103056]
[1749452177949,0.04598578,150.88,150.86,2.75786526]
[1749452178350,0.04598578,150.88,150.86,6.6253]
[1749452178654,0.04598578,150.88,150.86,9.38316526]
[1749452178853,0.04598578,150.88,150.87,6.625]
[1749452179854,4.51825092,150.88,150.87,6.625]
[1749452180153,4.51825471,150.88,150.87,6.625]
[1749452181652,4.51825471,150.88,150.86,2.75786526]
[1749452181955,0.04598578,150.88,150.86,9.38316526]
[1749452183158,0.04598578,150.88,150.87,6.625]
[1749452183352,4.5120607,150.88,150.87,6.625]
[1749452183550,0.04598578,150.88,150.87,6.625]
[1749452186260,0.04598578,150.88,150.86,9.38326526]
[1749452187060,6.67058578,150.88,150.86,6.6254]
[1749452187556,0.04598578,150.88,150.86,6.6254]
[1749452188261,0.04598578,150.88,150.87,6.625]
[1749452189059,0.04598578,150.88,150.86,9.38316526]
[1749452190264,9.42845104,150.88,150.85,9.38356526]
[1749452190867,9.42845104,150.88,150.86,6.6255]
[1749452191065,0.04598578,150.88,150.86,6.6255]
[1749452192365,6.67068578,150.88,150.86,6.6255]
[1749452192770,0.04598578,150.88,150.85,2.75786526]
[1749452193468,0.04598578,150.88,150.86,2.75786526]
[1749452193967,6.67068578,150.88,150.84,32.6103056]
[1749452194263,2.80385104,150.88,150.85,2.75786526]
[1749452194565,2.80385104,150.88,150.86,6.6253]
[1749452195267,9.42845104,150.88,150.85,9.38376526]
[1749452195867,9.42845104,150.88,150.85,6.6259]
[1749452196069,9.42845104,150.88,150.85,9.38376526]
[1749452196266,6.67058578,150.88,150.85,9.38376526]
[1749452198571,6.67058578,150.88,150.85,6.6259]